Cogmind - Beta 15 @@@ ROGUE MODE // 2025.06.15 @ 04:38:58 Player: CL-1C0 Result: Destroyed by as-08144 with Assembled Rifle Performance ------------- Evolutions (0) 0 Regions Visited (3) 600 Robots Destroyed (0) 0 Value Destroyed (0) 0 Prototype IDs (23) 460 Alien Tech Used (0) 0 Bonus (325) 325 TOTAL SCORE: 1385 Bonus ------- Follower Combat Kills 25 Aligned with FarCom 300 Cogmind --------- Core Integrity 0/250 Matter 253/300 Energy 98/100 System Corruption 1% Temperature Cool (0) Movement Core (50) Location -10/Exiles Parts ------- > --- POWER (1) -------- (None) > --- PROPULSION (2) --- (None) > --- UTILITY (2) ------ (None) > --- WEAPON (2) ------- (None) > --- INVENTORY (5) ---- (None) Peak State ------------ > --- POWER ------------ (None) > --- PROPULSION ------- Light Treads Light Treads > --- UTILITY ---------- (None) > --- WEAPON ----------- Assault Rifle > --- INVENTORY -------- Nuclear Core Reinforced Deuterium Engine Light Fission Core [Rating: 4] Favorites ----------- Power None Propulsion Light Treads Treads Light Treads Utility None Weapon Assault Rifle Ballistic Gun Assault Rifle Build | -11 -10 -10 -10 ------- Run | Yrd Mat Min Exi Slots Evolved . | . . . . Power . | . . . . Propulsion . | . . . . Utility . | . . . . Weapon . | . . . . Parts Attached 3 | 2 . . 1 Power . | . . . . Engine . | . . . . Core . | . . . . Reactor . | . . . . Propulsion 2 | 2 . . . Treads 2 | 2 . . . Leg . | . . . . Wheel . | . . . . Hover . | . . . . Flight . | . . . . Utility . | . . . . Device . | . . . . Storage . | . . . . Processor . | . . . . Hackware . | . . . . Protection . | . . . . Artifact . | . . . . Weapon 1 | . . . 1 Energy Gun . | . . . . Energy Cannon . | . . . . Ballistic Gun 1 | . . . 1 Ballistic Cannon . | . . . . Launcher . | . . . . Special Weapon . | . . . . Impact Weapon . | . . . . Slashing Weapon . | . . . . Piercing Weapon . | . . . . Special Melee Weapon . | . . . . Unidentified Prototypes . | . . . . Parts Lost 3 | . . . 3 Power . | . . . . Propulsion 2 | . . . 2 Utility . | . . . . Weapon 1 | . . . 1 Highest Loss Streak 3 | . . . 3 To Critical Strikes . | . . . . Average Backups . | 4 . . 1 Power . | . . . 1 Propulsion . | 3 . . . Utility . | . . . . Weapon . | 1 . . . Tool/Special . | . . . . Unused Backups 3 | . . . 3 Power 3 | . . . 3 Propulsion . | . . . . Utility . | . . . . Weapon . | . . . . Tool/Special . | . . . . Average Slot Usage (%) 28 | . 28 28 28 Treads 26 | . 28 28 26 Ballistic Gun 1 | . . . 2 Peak Build Rating 4 | 2 2 2 4 Average Rating 2 | 1 2 2 2 On Entrance 3 | 6 2 2 2 Naked Turns 10 | . . . 10 Heaviest Build 2 | . . . 2 Greatest Support 20 | 3 3 20 3 Greatest Overweight (x) . | . . . . Average Overweight (x) . | . . . . Largest Inventory Capacity 5 | 5 5 5 5 Average Capacity 5 | 5 5 5 5 Most Carried 5 | 4 . 5 5 Average Carried 1 | 2 . 1 2 Final Capacity 5 | 5 5 5 5 Final Carried 5 | . . 5 . Class Distribution -------------------- 100% | Mutant Dominant Class ---------------- Mutant | -10/Materials Mutant | -10/Mines Mutant | -10/Exiles Resources | -11 -10 -10 -10 ----------- Run | Yrd Mat Min Exi Matter Collected 212 | 200 . 12 . Remotely . | . . . . Salvage Created 15 | . . . 15 Parts . | . . . . Haulers Intercepted . | . . . . Recyclers Shooed . | . . . . Parts Field Recycled . | . . . . Retrieved Matter . | . . . . Parts Self-Destructed . | . . . . Prevented . | . . . . Kills | -11 -10 -10 -10 ------- Run | Yrd Mat Min Exi Combat Hostiles Destroyed 2 | . . . 2 Guns 1 | . . . 1 AOE 1 | . . . 1 Classes Destroyed 1 | . . . 1 Assembled 2 | . . . 2 Best Kill Streak 2 | . . . 2 Combat Bots Only 2 | . . . 2 Max Kills in Single Turn 1 | . . . 1 Gunslinging . | . . . . Exploded 1 | . . . 1 Melee . | . . . . Uniques/NPCs Destroyed . | . . . . Combat | -11 -10 -10 -10 -------- Run | Yrd Mat Min Exi Hostile Shots Fired 77 | . 8 33 36 Missed 25 | . 4 10 11 Hits 52 | . 4 23 25 Melee 3 | . . . 3 Projectile 49 | . 4 23 22 Critical Strikes 1 | . . 1 . Damage Taken 637 | . 49 244 344 Core 257 | . 24 66 167 Absorbed by Shields . | . . . . Core Remaining (%) 100 | 100 . . . Volleys Fired 14 | . . . 14 Largest 1 | . . . 1 Hottest 20 | . . . 20 Shots Fired 14 | . . . 14 Gun 14 | . . . 14 Cannon . | . . . . Launcher . | . . . . Special . | . . . . Kinetic 14 | . . . 14 Thermal . | . . . . Explosive . | . . . . Electromagnetic . | . . . . Robot Hit Streak 5 | . . . 5 Robot Miss Streak 1 | . . . 1 Penetration Max . | . . . . Secondary Targets . | . . . . Shots Hit Robots 10 | . . . 10 Core Hits 4 | . . . 4 Critical Kills . | . . . . Critical Parts Destroyed . | . . . . Critical Strikes . | . . . . Melee Attacks . | . . . . Impact . | . . . . Slashing . | . . . . Piercing . | . . . . Sneak Attacks . | . . . . Combat Hostiles . | . . . . Follow-up Attacks . | . . . . Damage Inflicted 139 | . . 12 127 Guns 127 | . . . 127 Cannons . | . . . . Explosions . | . . . . Melee . | . . . . Ramming 12 | . . 12 . Kinetic 127 | . . . 127 Thermal . | . . . . Explosive . | . . . . Electromagnetic . | . . . . Impact . | . . . . Slashing . | . . . . Piercing . | . . . . Highest Corruption 1 | . . . 1 Average Corruption 1 | . . . 1 Corruption Purged . | . . . . Corruption Blocked . | . . . . Effects 1 | . . . 1 Matter Fused 1 | . . . 1 Overload Shots . | . . . . Overflow Damage . | . . . . Projectiles . | . . . . Explosions . | . . . . Melee . | . . . . Knockbacks 1 | . . 1 . Impact 1 | . . 1 . Kinetic . | . . . . Secondary . | . . . . Self-Inflicted Damage 3 | . . 3 . Shots . | . . . . Rammed 4 | . . 4 . Targets Rammed 4 | . . 4 . Kicked . | . . . . Crushed . | . . . . Highest Temperature . | . . . . Average Temperature . | . . . . Received Heat Transfer 114 | . 30 84 . Siege Activations . | . . . . Martial Activations . | . . . . Shielding Activations . | . . . . Robots Disrupted . | . . . . Combat Hostiles . | . . . . Robots Corrupted . | . . . . Combat Hostiles . | . . . . Parts Fried . | . . . . Impact Corruptions . | . . . . Robots Melted . | . . . . Combat Hostiles . | . . . . Parts Melted . | . . . . Heat Transferred . | . . . . Parts Sabotaged . | . . . . Parts Stolen . | . . . . Parts Stripped . | . . . . Power Chain Reactions . | . . . . Alert | -11 -10 -10 -10 ------- Run | Yrd Mat Min Exi Maximum Alert Level . | . . . . Low Security (%) 100 | 100 100 100 . Level 1 . | . . . . Level 2 . | . . . . Level 3 . | . . . . Level 4 . | . . . . Level 5 . | . . . . High Security . | . . . . Max Security . | . . . . Peak Influence 62 | . . 62 . Initial . | . . . . Average 9 | . . 12 . Influence Increases 82 | . . 82 . Destroy 0b10 Robot/C 40 | . . 40 . Destroy Leader 10 | . . 10 . Allied During Kill 2 | . . 2 . Lose Combat Pursuer 30 | . . 30 . Influence Decreases 82 | . . 82 . Time Decay 42 | . . 42 . Lost Ally 40 | . . 40 . Squads Dispatched 1 | . . 1 . Investigation . | . . . . Extermination . | . . . . Reinforcement . | . . . . Assault 1 | . . 1 . Garrison . | . . . . Intercept . | . . . . Searches Triggered . | . . . . Construction Impeded . | . . . . Haulers Reinforced . | . . . . Active Scanning Responses . | . . . . Cargo Convoy Interrupts . | . . . . Stealth | -11 -10 -10 -10 --------- Run | Yrd Mat Min Exi Distress Signals . | . . . . Communications Jammed . | . . . . Distress Signals . | . . . . Times Spotted 15 | . 2 7 6 Peak Tracking Total 9 | . 2 3 9 Tactical Retreats 1 | . . 1 . Traps | -11 -10 -10 -10 ------- Run | Yrd Mat Min Exi Traps Triggered . | . . . . Indirectly . | . . . . Trap Hack Attempts . | . . . . Triggered . | . . . . Disarmed . | . . . . Reprogrammed . | . . . . Reused . | . . . . Traps Extracted . | . . . . Installed 3 | . . . 3 Triggered . | . . . . Most Traps Carried 3 | . . 3 3 Machines | -11 -10 -10 -10 ---------- Run | Yrd Mat Min Exi Machines Disabled 1 | . . . 1 Max in Single Turn 1 | . . . 1 Machines Repaired . | . . . . Machines Dismantled . | . . . . Machines Sabotaged . | . . . . Overloaded Fab Kills . | . . . . Hacking | -11 -10 -10 -10 --------- Run | Yrd Mat Min Exi Machines Accessed 2 | . . 1 1 Terminals 1 | . . 1 . Fabricators . | . . . . Repair Stations . | . . . . Recycling Units . | . . . . Scanalyzers . | . . . . Garrison Access . | . . . . Total Hacks 2 | . . 1 1 Successful 2 | . . 1 1 Failed . | . . . . Catastrophic . | . . . . Database Lockouts . | . . . . Manual 2 | . . 1 1 Terminals 1 | . . 1 . Fabricators . | . . . . Repair Stations . | . . . . Recycling Units . | . . . . Scanalyzers . | . . . . Garrison Access . | . . . . Terminal Hacks 2 | . . 1 1 Zone Layout 1 | . . 1 . Proto ID Catalog 1 | . . . 1 Fabricator Hacks . | . . . . Repair Station Hacks . | . . . . Recycling Unit Hacks . | . . . . Scanalyzer . | . . . . Garrison Access Hacks . | . . . . Unauthorized Hacks . | . . . . Terminals . | . . . . Fabricators . | . . . . Repair Stations . | . . . . Recycling Units . | . . . . Scanalyzers . | . . . . Garrison Access . | . . . . Data Cores Recovered . | . . . . Used . | . . . . Hacking Detections . | . . . . Full Trace Events . | . . . . Feedback Events . | . . . . Feedback Blocked . | . . . . Robot Schematics Acquired . | . . . . Robots Built . | . . . . Authchips . | . . . . Time . | . . . . Total Robot Build Rating . | . . . . Part Schematics Acquired . | . . . . Parts Built . | . . . . Authchips . | . . . . Time . | . . . . Total Part Build Rating . | . . . . Parts Repaired . | . . . . Time . | . . . . Parts Recycled . | . . . . Recycled Matter . | . . . . Retrieved Matter . | . . . . Retrieved Components . | . . . . Parts Scanalyzed . | . . . . Part Schematics Acquired . | . . . . Parts Damaged . | . . . . Bothacking | -11 -10 -10 -10 ------------ Run | Yrd Mat Min Exi Used RIF Installer . | . . . . Robots Hacked . | . . . . Non-combat . | . . . . Combat . | . . . . Robot Hacks Applied . | . . . . Relay Couplers Released . | . . . . Fabnet Peak Effective % . | . . . . Robots Rewired . | . . . . Allies Hacked . | . . . . Hacks Repelled . | . . . . Allies | -11 -10 -10 -10 -------- Run | Yrd Mat Min Exi Total Allies 3 | . . 3 . Largest Group 2 | . . 2 . Highest-Rated Group 36 | . . 36 . Highest-Rated Ally 31 | . . 31 . Total Orders . | . . . . Ally Attacks 15 | . . 15 . Total Damage 194 | . . 194 . Kills 2 | . . 2 . Allies Corrupted . | . . . . Allies Melted 1 | . . 1 . Intel | -11 -10 -10 -10 ------- Run | Yrd Mat Min Exi Active Infowar (turns) . | . . . . Robot Analysis Total . | . . . . Derelict Logs Recovered 1 | . . 1 . Drone Launches . | . . . . Drone Recoveries . | . . . . Exploration | -11 -10 -10 -10 ------------- Run | Yrd Mat Min Exi Turns Passed 514 | 4 37 189 284 Spaces Moved 868 | 1 73 350 444 Core 867 | 1 73 349 444 Treads 1 | . . 1 . Legs . | . . . . Wheels . | . . . . Hover . | . . . . Flight . | . . . . Fastest Speed 50 | 50 50 50 50 Average Speed 50 | 50 50 50 50 Slowest Speed 160 | 50 50 160 50 Overloaded Moves . | . . . . Propulsion Burnouts . | . . . . Robots Hopped . | . . . . Potential Cave-ins . | . . . . Cave-ins Triggered . | . . . . Exploration Rate (%) 39 | 2 28 63 66 Regions Visited 3 Branch Regions 2 Pre-discovered Areas . | . . . . Known Exits Taken . | . . . . Unknown Exits Taken 3 | 1 1 1 . Scrap Searched 1 | . . 1 . Spaces Dug . | . . . . Terrain Destroyed . | . . . . Melee . | . . . . Projectile . | . . . . AOE . | . . . . Terrain Rammed . | . . . . Walls Destroyed . | . . . . Machines Disabled . | . . . . Actions | -11 -10 -10 -10 --------- Run | Yrd Mat Min Exi Total 934 | 5 72 360 497 Wait 21 | . . 2 19 Move 865 | . 72 349 444 Hop . | . . . . Pick Up 11 | . . 5 6 Fast Attach . | . . . . Attach 3 | 2 . . 1 Detach . | . . . . Swap . | . . . . Drop 13 | 3 . . 10 Fire 14 | . . . 14 Melee . | . . . . Ram 1 | . . 1 . Kick . | . . . . Crush 3 | . . 3 . Escape Stasis . | . . . . Rewire . | . . . . Trap 3 | . . . 3 Miscellaneous . | . . . . Route ------- -11/Scrapyard -10/Materials -10/Mines -10/Exiles History --------- Turn | Location | Event 1 | -11/Scrapyard | Released all parts (6) 5 | -11/Scrapyard | Discovered new exit (range 0) 5 | -11/Scrapyard | Entered Materials 36 | -10/Materials | Discovered new exit (range 12) 42 | -10/Materials | Entered Mines 56 | -10/Mines | Learned Materials terminal intel 158 | -10/Mines | Met a Derelict testing a Signal Generator 159 | -10/Mines | Found Signal Generator 175 | -10/Mines | Found a hidden stash of uninstalled traps 229 | -10/Mines | Deemed a non-threat by the Exiles lab entrance 229 | -10/Mines | Discovered new exit (range 5) 231 | -10/Mines | Entered Exiles 248 | -10/Exiles | Met 8R-AWN 255 | -10/Exiles | Met EX-HEX 270 | -10/Exiles | Met EX-BIN 276 | -10/Exiles | Aligned with FarCom system 277 | -10/Exiles | Given EX-Vault access code 288 | -10/Exiles | Opened EX-Vault 301 | -10/Exiles | Warned to stay clear of 0b10 Research branches 302 | -10/Exiles | Build established: Mutant 316 | -10/Exiles | Met EX-DEC 452 | -10/Exiles | Attacked by the Exiles 498 | -10/Exiles | Core integrity fell below 50% 511 | -10/Exiles | Core integrity fell below 20% 515 | -10/Exiles | Destroyed by as-08144 with Assembled Rifle Last Messages --------------- 00451_ Machine disabled. 00452_ EXILES: Hostile robot within lab perimeter. Defensive protocols time, folks! 00453_ Dropped Rigged Nuclear Core. 00456_ Dropped Rigged Rnf. Deuterium Engine. 00458_ Dropped Rigged Lgt. Fission Core. 00483_ Rigged Rnf. Deuterium Engine explodes. 00483_ as-44367 destroyed. 00483_ Machine disabled. 00485_ Rigged Lgt. Fission Core explodes. 00485_ as-01085 destroyed. 00485_ Machine disabled. 00487_ as-95574 destroyed. 00493_ Broken Lgt. Treads destroyed. 00494_ Lgt. Treads destroyed. 00494_ System corrupted by crushing effect (+1). 00497_ System corrupted: Matter fused (-10). 00503_ Destroyed Asb. Hover Unit. 00505_ Assault Rifle destroyed. 00508_ Installed Blade Trap. Map ----- +----------------------------------------------------+ | ?????????????????????????????????????????????????? | | ?????????????????????????????????????????????????? | | ?????????????????????????????????????????????????? | | ?????????????????????????????????????????????????? | | ?????????????????????????????????????????????????? | | ?????????????????????????????????????????????????? | | ?????????????????????????????????????????????????? | | ?????????????????????????????????????????????????? | | ?????????????????????????????????????????????????? | | ?????????????????????????????????????????????????# | | ????????????????????????????????????????????????"" | | ????????????????????????????????????????????????"" | | ???????????????????????????????????????????????#"" | | ???????????????????????????????????????????????#" | | ???????????????????????????????????????????????#" | | ???????????????????????????????????????????????#"" | | ???????????????????????????????????????????????##" | | ?????????????????????????????????????????????????? | | ?????????????????????????????????????????????????? | | ?????????????????????????????????????????????????? | | ??????????????????????#######????????????????????? | | ??????? ######???????#!!! "#????????????????????? | | ??????? #""???????# "#????????????????????? | | ?????? ??????# "#????????????????????? | | ??????" #????## ""#????????????##??????? | | ??????" #####" @""#???????????? """???? | | ???????# ##" ""#????????????" """#??? | | ????????# # " ^###???????????"" ???? | | ???????????# ^#?????????????"" ???? | | ????????????### a ^##????????????"" "#??? | | ??????????????### aa"#???????????? ""???? | | ???????????????#" ""#???????????" "????? | | ?????????????"""" ##??????????# #????? | | ?????????! "### ######???### ###?## | | ?????????! "#?## "" #####X# #"###" | | ????????#! ##??# % """"" | | ????????# !""""""##????#"# % "" "" | | ????????#########??????#### % " " | | ??????????????????????????#"" | | ???????????????????????????#### | | ??????????????????????????????## | | ???????????????????????????????## | | ????????????????????????????????##" | | ?????????????????????????????????#""" | | ????????????????????????????????##" | | ????????????????????????????????#"" " | | ????????????????????????????????#""" """ | | ????????????????????????????????""" """# | | ????????????????????????????????""" ""# | | ????????????????????????????????"" ## | +----------------------------------------------------+ Best States ------------- Heat Dissipation 25 Energy Generation 5 Energy Capacity 100 Matter Stores 300 Matter Capacity 300 Sight Range 16 Terrain Scan Density 10 Evasion (%) 50 Recoil Reduction 1 Item Schematics ----------------- None Robot Schematics ------------------ None Fabricated ------------ Nothing Repaired ---------- Nothing Alien Tech Used ----------------- None Achievements -------------- None Challenges ------------ None Game ------ Seed GhostPitchforkTearclaws Manual? 0 Play Time 00:08:42 Cumulative 539.1 hours Start 2025.06.15 @ 04:33:17 End 2025.06.15 @ 04:38:58 Sessions 1 Manual Loads 0 Difficulty Rogue Special Mode None Game No. 642 Rogue 642 Adventurer 0 Explorer 0 Win Type - Total 19 Types 13/0/5/1/0/0/0/0/0/0 Lore% 83 Gallery% 83 Achievement% 82 Wizard Run 0 Options --------- Layout 0 ASCII 0 Keyboard 0 Movement Numpad Keybinds 0 Fullscreen 1 Font 18/SmallcapsGlow Map View 76x50 Zoom Use 0% Tactical HUD 1 Map Filters NONE Filters NONE Steam 1 RUN: f00eaa49-4279-4773-ab87-a7d6d152529a